fUSD/lending_fUSD_20260202
["ID","MTS","AMOUNT","RATE_DAILY","PERIOD"]
[404324216,1770060638701,-18256.6333,0.00011138,2]
[404324217,1770060638710,-250.0,0.00011148,2]
[404324218,1770060638719,-151.5908,0.000112,2]
[404324219,1770060638728,-16231.0,0.00011205,2]
[404324220,1770060638737,-3333.0,0.00011205,2]
[404324221,1770060638747,-6998.0119,0.00011205,2]
[404324222,1770060638756,-150.0,0.00011233,2]
[404324223,1770060638766,-46478.1,0.00011238,2]
[404324224,1770060638775,-458.51,0.00011338,2]
[404324225,1770060638787,-845.0,0.00011347,2]
[404324226,1770060638796,-459.0,0.00011347,2]
[404324227,1770060638806,-500.0,0.00011349,2]
[404324228,1770060638815,-376.0,0.00011363,2]
[404324229,1770060638824,-172.0,0.00011385,2]
[404324230,1770060638834,-1331.0,0.00011385,2]
[404324231,1770060638843,-62598.83620064,0.00011411,2]
[404324232,1770060638853,-332.0,0.00011438,2]
[404324233,1770060638862,-1000.0,0.00011439,2]
[404324234,1770060638872,-3403.59312031,0.00011444,2]
[404324235,1770060638882,-8982.1360946,0.00011444,2]
[404324236,1770060638891,-15845.55275748,0.00011444,2]
[404324237,1770060638901,-199.0,0.00011497,2]
[404324238,1770060638910,-1088.0,0.00011522,2]
[404324239,1770060638919,-1000.0,0.00011527,2]
[404324240,1770060638928,-1402.98124953,0.00011545,2]
[404324241,1770060638937,-57709.19420285,0.00011571,2]
[404324242,1770060638946,-883.0,0.00011595,2]
[404324243,1770060638955,-200.0,0.00011607,2]
[404324244,1770060638964,-200.0,0.00011607,2]
[404324245,1770060638973,-500.0,0.00011607,2]
[404324246,1770060638983,-458.51,0.00011612,2]
[404324247,1770060638992,-500.0,0.00011623,2]
[404324248,1770060639002,-1297.0,0.00011812,2]
[404324249,1770060639011,-62598.83620064,0.00011847,2]
[404324250,1770060639021,-458.51,0.00011886,2]
[404324251,1770060639031,-500.0,0.00011897,2]
[404324252,1770060639040,-74248.18,0.00011926,2]
[404324253,1770060639050,-23703.99926492,0.00011944,2]
[404324254,1770060639059,-1208.08524459,0.00011961,2]
[404324255,1770060639069,-1208.08524459,0.00011961,2]
[404324256,1770060639079,-282.65,0.00011967,2]
[404324257,1770060639089,-300.0,0.00012073,2]
[404324258,1770060639099,-255.0,0.00012108,2]
[404324259,1770060639108,-195.0,0.00012124,2]
[404324260,1770060639119,-250.0,0.00012124,2]
[404324261,1770060639130,-300.0,0.00012124,2]
[404324262,1770060639140,-500.0,0.00012124,2]
[404324263,1770060639149,-195.0,0.00012124,2]
[404324264,1770060639159,-150.33828097,0.00012125,2]
[404324265,1770060639168,-500.0,0.00012125,2]
[404324266,1770060639178,-1680.0,0.00012154,2]
[404324267,1770060639192,-200.0,0.00012155,2]
[404324268,1770060639202,-200.0,0.00012155,2]
[404324269,1770060639212,-500.0,0.00012155,2]
[404324270,1770060639222,-458.51,0.0001216,2]
[404324271,1770060639233,-57709.19420285,0.00012167,2]
[404324272,1770060639243,-500.0,0.00012171,2]
[404324273,1770060639254,-62598.83620064,0.00012283,2]
[404324274,1770060639263,-434.32,0.00012418,2]
[404324275,1770060639273,-458.51,0.00012434,2]
[404324276,1770060639284,-500.0,0.00012445,2]
[404324277,1770060639293,-181.63,0.00012482,2]
[404324278,1770060639303,-193705.37119555,0.0001269,2]
[404324279,1770060639313,-479.0,0.00012694,2]
[404324280,1770060639322,-200.0,0.00012703,2]
[404324281,1770060639332,-208.65826531,0.00012703,2]
[404324282,1770060639341,-500.0,0.00012703,2]
[404324283,1770060639350,-458.51,0.00012708,2]
[404324284,1770060639360,-1000.0,0.0001271,2]
[404324285,1770060639369,-500.0,0.00012719,2]
[404324286,1770060639379,-62598.83620064,0.00012719,2]
[404324287,1770060639388,-57709.19420285,0.00012763,2]
[404324288,1770060639398,-282.65,0.00012822,2]
[404324289,1770060639407,-32072.3469,0.00012944,2]
[404324290,1770060639416,-1208.08524459,0.00012947,2]
[404324291,1770060639426,-458.51,0.00012982,2]
[404324292,1770060639435,-500.0,0.00012993,2]
[404324293,1770060639444,-4433.94000455,0.00013,2]
[404324294,1770060639453,-5353.89966494,0.0001305,2]
[404324295,1770060639463,-62598.83620064,0.00013156,2]
[404324296,1770060639472,-500.0,0.00013205,2]
[404324297,1770060639482,-200.0,0.00013251,2]
[404324298,1770060639491,-500.0,0.00013251,2]
[404324299,1770060639500,-458.51,0.00013256,2]
[404324300,1770060639509,-433.0,0.00013258,2]
[404324301,1770060639519,-500.0,0.00013267,2]
[404324302,1770060639528,-151.0,0.00013352,2]
[404324303,1770060639538,-57709.19420285,0.00013359,2]
[404324304,1770060639547,-2351.0,0.00013369,2]
[404324305,1770060639566,-183.76045452,0.000135,2]
[404324306,1770060639576,-458.51,0.0001353,2]
[404324307,1770060639586,-500.0,0.00013541,2]
[404324308,1770060639595,-160.29771235,0.00013595,2]
[404324309,1770060639604,-1617.53493796,0.00013596,2]
[404324310,1770060639614,-500.0,0.00013698,2]
[404324311,1770060639624,-500.0,0.00013698,2]
[404324312,1770060639633,-630.82371033,0.00013698,2]
[404324313,1770060639643,-500.0,0.00013698,2]
[404324314,1770060639652,-500.0,0.00013698,2]
[404324315,1770060639661,-500.0,0.00013698,2]
[404324316,1770060639671,-500.0,0.00013698,2]
[404324317,1770060639680,-500.0,0.00013698,2]
[404324318,1770060639690,-507.90611429,0.00013698,2]
[404324319,1770060639700,-500.0,0.00013698,2]
[404324320,1770060639710,-500.0,0.00013698,2]
[404324321,1770060639719,-500.0,0.00013698,2]
[404324322,1770060639729,-500.0,0.00013698,2]
[404324323,1770060639738,-500.0,0.00013698,2]
[404324324,1770060639748,-500.0,0.00013698,2]
[404324325,1770060639757,-500.0,0.00013698,2]
[404324326,1770060639767,-500.0,0.00013698,2]
[404324327,1770060639776,-500.0,0.00013698,2]
[404324328,1770060639786,-586.19962979,0.00013698,2]
[404324329,1770060639797,-500.0,0.00013698,2]
[404324330,1770060639806,-500.0,0.00013698,2]
[404324331,1770060639815,-500.0,0.00013698,2]
[404324332,1770060639825,-500.0,0.00013698,2]
[404324333,1770060639834,-500.0,0.00013698,2]
[404324334,1770060639844,-500.0,0.00013698,2]
[404324335,1770060639853,-500.0,0.00013698,2]
[404324336,1770060639862,-500.0,0.00013698,2]
[404324337,1770060639871,-500.0,0.00013698,2]
[404324338,1770060639880,-500.0,0.00013698,2]
[404324339,1770060639890,-500.0,0.00013698,2]
[404324340,1770060639899,-500.0,0.00013698,2]
[404324341,1770060639908,-500.0,0.00013698,2]
[404324342,1770060639918,-500.0,0.00013698,2]
[404324343,1770060639927,-500.0,0.00013698,2]
[404324344,1770060639936,-500.0,0.00013698,2]
[404324345,1770060639946,-500.0,0.00013698,2]
[404324346,1770060639956,-500.0,0.00013698,2]
[404324347,1770060639966,-500.0,0.00013698,2]
[404324348,1770060639975,-500.0,0.00013698,2]
[404324349,1770060639985,-500.0,0.00013698,2]
[404324350,1770060639994,-500.0,0.00013698,2]
[404324351,1770060640004,-500.0,0.00013698,2]
[404324352,1770060640014,-500.0,0.00013698,2]
[404324353,1770060640024,-500.0,0.00013698,2]
[404324354,1770060640036,-500.0,0.00013698,2]
[404324355,1770060640046,-500.0,0.00013698,2]
[404324356,1770060640059,-500.0,0.00013698,2]
[404324357,1770060640069,-500.0,0.00013698,2]
[404324358,1770060640080,-500.0,0.00013698,2]
[404324359,1770060640090,-500.0,0.00013698,2]
[404324360,1770060640101,-500.0,0.00013698,2]
[404324361,1770060640111,-500.0,0.00013698,2]
[404324362,1770060640120,-500.0,0.00013698,2]
[404324363,1770060640129,-500.0,0.00013698,2]
[404324364,1770060640139,-500.0,0.00013698,2]
[404324365,1770060640151,-500.0,0.00013698,2]
[404324366,1770060640162,-500.0,0.00013698,2]
[404324367,1770060640172,-500.0,0.00013698,2]
[404324368,1770060640182,-500.0,0.00013698,2]
[404324369,1770060640195,-500.0,0.00013698,2]
[404324370,1770060640206,-560.54945219,0.00013698,2]
[404324371,1770060640216,-500.0,0.00013698,2]
[404324372,1770060640227,-500.0,0.00013698,2]
[404324373,1770060640237,-500.0,0.00013698,2]
[404324374,1770060640246,-500.0,0.00013698,2]
[404324375,1770060640255,-500.0,0.00013698,2]
[404324376,1770060640265,-500.0,0.00013698,2]
[404324378,1770060640275,-500.0,0.00013698,2]
[404324380,1770060640285,-500.0,0.00013698,2]
[404324382,1770060640295,-500.0,0.00013698,2]
[404324383,1770060640305,-330.26941115,0.00013698,2]
[404324384,1770060640314,-500.0,0.00013698,2]
[404324385,1770060640324,-500.0,0.00013698,2]
[404324386,1770060640333,-500.0,0.00013698,2]
[404324387,1770060640343,-500.0,0.00013698,2]
[404324388,1770060640353,-500.0,0.00013698,2]
[404324389,1770060640363,-500.0,0.00013698,2]
[404324390,1770060640373,-440.6625364,0.00013698,2]
[404324391,1770060640384,-748.74,0.00013698,2]
[404324392,1770060640394,-748.74,0.00013698,2]
[404324393,1770060640403,-748.74,0.00013698,2]
[404324394,1770060640413,-748.74,0.00013698,2]
[404324395,1770060640422,-748.74,0.00013698,2]
[404324396,1770060640432,-748.74,0.00013698,2]
[404324397,1770060640441,-748.74,0.00013698,2]
[404324398,1770060640451,-748.74,0.00013698,2]
[404324399,1770060640460,-748.74,0.00013698,2]
[404324400,1770060640470,-748.74,0.00013698,2]
[404324401,1770060640483,-748.74,0.00013698,2]
[404324402,1770060640493,-748.74,0.00013698,2]
[404324403,1770060640503,-748.74,0.00013698,2]
[404324404,1770060640513,-748.74,0.00013698,2]
[404324405,1770060640524,-748.74,0.00013698,2]
[404324406,1770060640535,-500.0,0.00013698,2]
[404324407,1770060640545,-500.0,0.00013698,2]
[404324408,1770060640554,-500.0,0.00013698,2]
[404324409,1770060640563,-500.0,0.00013698,2]
[404324410,1770060640573,-500.0,0.00013698,2]
[404324411,1770060640583,-500.0,0.00013698,2]
[404324412,1770060640592,-500.0,0.00013698,2]
[404324413,1770060640601,-500.0,0.00013698,2]
[404324414,1770060640610,-500.0,0.00013698,2]
[404324415,1770060640620,-500.0,0.00013698,2]
[404324416,1770060640630,-500.0,0.00013698,2]
[404324417,1770060640640,-500.0,0.00013698,2]
[404324418,1770060640649,-185.13964732,0.00013698,2]
[404324419,1770060640659,-1214.96,0.00013698,2]
[404324420,1770060640668,-1214.96,0.00013698,2]
[404324421,1770060640678,-1214.96,0.00013698,2]
[404324422,1770060640687,-1214.96,0.00013698,2]
[404324423,1770060640697,-1214.96,0.00013698,2]
[404324424,1770060640707,-1214.96,0.00013698,2]
[404324425,1770060640716,-1214.96,0.00013698,2]
[404324426,1770060640726,-1214.96,0.00013698,2]
[404324427,1770060640735,-1214.96,0.00013698,2]
[404324428,1770060640744,-1214.96,0.00013698,2]
[404324429,1770060640754,-1214.96,0.00013698,2]
[404324430,1770060640764,-1214.96,0.00013698,2]
[404324431,1770060640773,-1214.96,0.00013698,2]
[404324432,1770060640782,-1214.96,0.00013698,2]
[404324433,1770060640792,-619.1,0.00013698,2]
[404324434,1770060640806,-619.1,0.00013698,2]
[404324435,1770060640815,-619.1,0.00013698,2]
[404324436,1770060640824,-619.1,0.00013698,2]
[404324437,1770060640833,-619.1,0.00013698,2]
[404324438,1770060640843,-619.1,0.00013698,2]
[404324439,1770060640852,-619.1,0.00013698,2]
[404324440,1770060640862,-619.1,0.00013698,2]
[404324441,1770060640871,-619.1,0.00013698,2]
[404324442,1770060640881,-619.1,0.00013698,2]
[404324443,1770060640890,-619.1,0.00013698,2]
[404324444,1770060640900,-619.1,0.00013698,2]
[404324445,1770060640909,-619.1,0.00013698,2]
[404324446,1770060640918,-619.1,0.00013698,2]
[404324447,1770060640927,-646.39442601,0.00013698,2]
[404324448,1770060640937,-500.0,0.00013698,2]
[404324449,1770060640946,-500.0,0.00013698,2]
[404324450,1770060640955,-500.0,0.00013698,2]
[404324451,1770060640964,-500.0,0.00013698,2]
[404324452,1770060640973,-500.0,0.00013698,2]
[404324453,1770060640982,-500.0,0.00013698,2]
[404324454,1770060640992,-500.0,0.00013698,2]
[404324455,1770060641001,-500.0,0.00013698,2]
[404324456,1770060641011,-500.0,0.00013698,2]
[404324457,1770060641020,-500.0,0.00013698,2]
[404324458,1770060641030,-500.0,0.00013698,2]
[404324459,1770060641039,-500.0,0.00013698,2]
[404324460,1770060641049,-500.0,0.00013698,2]
[404324461,1770060641058,-500.0,0.00013698,2]
[404324462,1770060641067,-596.97,0.00013698,2]
[404324463,1770060641076,-596.97,0.00013698,2]
[404324464,1770060641086,-596.97,0.00013698,2]
[404324465,1770060641095,-596.97,0.00013698,2]
[404324466,1770060641105,-596.97,0.00013698,2]
[404324467,1770060641114,-596.97,0.00013698,2]
[404324468,1770060641124,-596.97,0.00013698,2]
[404324469,1770060641133,-596.97,0.00013698,2]
[404324470,1770060641142,-596.97,0.00013698,2]
[404324471,1770060641152,-596.97,0.00013698,2]
[404324472,1770060641161,-596.97,0.00013698,2]
[404324473,1770060641170,-596.97,0.00013698,2]
[404324474,1770060641179,-596.97,0.00013698,2]
[404324475,1770060641192,-596.97,0.00013698,2]
[404324476,1770060641201,-500.0,0.00013698,2]
[404324477,1770060641211,-500.0,0.00013698,2]
[404324478,1770060641220,-500.0,0.00013698,2]
[404324479,1770060641230,-500.0,0.00013698,2]
[404324480,1770060641239,-500.0,0.00013698,2]
[404324481,1770060641248,-500.0,0.00013698,2]
[404324482,1770060641259,-334.5135457,0.00013698,2]
[404324483,1770060641270,-1269.29,0.00013698,2]
[404324484,1770060641279,-1269.29,0.00013698,2]
[404324485,1770060641289,-1269.29,0.00013698,2]
[404324486,1770060641298,-1269.29,0.00013698,2]
[404324487,1770060641308,-1269.29,0.00013698,2]
[404324488,1770060641318,-1269.29,0.00013698,2]
[404324489,1770060641328,-1269.29,0.00013698,2]
[404324490,1770060641338,-1269.29,0.00013698,2]
[404324491,1770060641348,-1269.29,0.00013698,2]
[404324492,1770060641357,-1269.29,0.00013698,2]
[404324493,1770060641367,-1269.29,0.00013698,2]
[404324494,1770060641376,-1269.29,0.00013698,2]
[404324495,1770060641387,-1269.29,0.00013698,2]
[404324496,1770060641396,-1269.29,0.00013698,2]
[404324497,1770060641406,-1269.29,0.00013698,2]
[404324498,1770060641420,-516.48312948,0.00013698,2]
[404324499,1770060641429,-500.0,0.00013698,2]
[404324500,1770060641439,-500.0,0.00013698,2]
[404324501,1770060641449,-500.0,0.00013698,2]
[404324502,1770060641458,-500.0,0.00013698,2]
[404324503,1770060641469,-500.0,0.00013698,2]
[404324504,1770060641479,-500.0,0.00013698,2]
[404324505,1770060641489,-500.0,0.00013698,2]
[404324506,1770060641501,-500.0,0.00013698,2]
[404324507,1770060641511,-500.0,0.00013698,2]
[404324508,1770060641520,-500.0,0.00013698,2]
[404324509,1770060641530,-500.0,0.00013698,2]
[404324510,1770060641539,-591.08774682,0.00013698,2]
[404324511,1770060641548,-500.0,0.00013698,2]
[404324512,1770060641558,-500.0,0.00013698,2]
[404324513,1770060641567,-500.0,0.00013698,2]
[404324514,1770060641576,-500.0,0.00013698,2]
[404324515,1770060641586,-500.0,0.00013698,2]
[404324516,1770060641595,-614.04732503,0.00013698,2]
[404324517,1770060641604,-500.0,0.00013698,2]
[404324518,1770060641613,-500.0,0.00013698,2]
[404324519,1770060641623,-500.0,0.00013698,2]
[404324520,1770060641632,-500.0,0.00013698,2]
[404324521,1770060641641,-500.0,0.00013698,2]
[404324522,1770060641651,-500.0,0.00013698,2]
[404324523,1770060641660,-500.0,0.00013698,2]
[404324524,1770060641669,-500.0,0.00013698,2]
[404324525,1770060641678,-500.0,0.00013698,2]
[404324526,1770060641687,-312.15594151,0.00013698,2]
[404324527,1770060641697,-500.0,0.00013698,2]
[404324528,1770060641707,-500.0,0.00013698,2]
[404324529,1770060641716,-500.0,0.00013698,2]
[404324530,1770060641726,-500.0,0.00013698,2]
[404324531,1770060641735,-500.0,0.00013698,2]
[404324532,1770060641749,-500.0,0.00013698,2]
[404324533,1770060641759,-366.58671911,0.00013698,2]
[404324534,1770060641769,-500.0,0.00013698,2]
[404324535,1770060641779,-500.0,0.00013698,2]
[404324536,1770060641788,-500.0,0.00013698,2]
[404324537,1770060641798,-500.0,0.00013698,2]
[404324538,1770060641809,-500.0,0.00013698,2]
[404324539,1770060641820,-500.0,0.00013698,2]
[404324540,1770060641830,-500.0,0.00013698,2]
[404324541,1770060641839,-500.0,0.00013698,2]
[404324542,1770060641849,-500.0,0.00013698,2]
[404324543,1770060641859,-500.0,0.00013698,2]
[404324544,1770060641869,-500.0,0.00013698,2]
[404324545,1770060641879,-500.0,0.00013698,2]
[404324546,1770060641889,-500.0,0.00013698,2]
[404324547,1770060641900,-500.0,0.00013698,2]
[404324548,1770060641911,-520.9392261,0.00013698,2]
[404324549,1770060641920,-849.11,0.00013698,2]
[404324550,1770060641930,-849.11,0.00013698,2]
[404324551,1770060641939,-849.11,0.00013698,2]
[404324552,1770060641949,-849.11,0.00013698,2]
[404324553,1770060641959,-849.11,0.00013698,2]
[404324554,1770060641968,-849.11,0.00013698,2]
[404324555,1770060641978,-849.11,0.00013698,2]
[404324556,1770060641988,-849.11,0.00013698,2]
[404324557,1770060642001,-849.11,0.00013698,2]
[404324558,1770060642012,-849.11,0.00013698,2]
[404324559,1770060642021,-849.11,0.00013698,2]
[404324560,1770060642031,-849.11,0.00013698,2]
[404324561,1770060642040,-849.11,0.00013698,2]
[404324562,1770060642050,-849.11,0.00013698,2]
[404324563,1770060642059,-849.11,0.00013698,2]
[404324564,1770060642069,-500.0,0.00013698,2]
[404324565,1770060642079,-500.0,0.00013698,2]
[404324566,1770060642092,-500.0,0.00013698,2]
[404324567,1770060642102,-500.0,0.00013698,2]
[404324568,1770060642112,-500.0,0.00013698,2]
[404324569,1770060642122,-607.62859807,0.00013698,2]
[404324570,1770060642132,-535.53919898,0.00013698,2]
[404324571,1770060642141,-500.0,0.00013698,2]
[404324572,1770060642152,-500.0,0.00013698,2]
[404324573,1770060642162,-500.0,0.00013698,2]
[404324574,1770060642172,-469.64985738,0.00013698,2]
[404324575,1770060642182,-500.0,0.00013698,2]
[404324576,1770060642196,-500.0,0.00013698,2]
[404324577,1770060642207,-500.0,0.00013698,2]
[404324578,1770060642217,-500.0,0.00013698,2]
[404324579,1770060642227,-500.0,0.00013698,2]
[404324580,1770060642477,-500.0,0.00013698,2]
[404324581,1770060642487,-500.0,0.00013698,2]
[404324582,1770060642499,-500.0,0.00013698,2]
[404324583,1770060642508,-500.0,0.00013698,2]
[404324584,1770060642518,-500.0,0.00013698,2]
[404324585,1770060642527,-500.0,0.00013698,2]
[404324586,1770060642537,-500.0,0.00013698,2]
[404324587,1770060642546,-500.0,0.00013698,2]
[404324588,1770060642556,-500.0,0.00013698,2]
[404324589,1770060642566,-500.0,0.00013698,2]
[404324590,1770060642576,-500.0,0.00013698,2]
[404324591,1770060642586,-500.0,0.00013698,2]
[404324592,1770060642595,-605.88,0.00013698,2]
[404324593,1770060642605,-605.88,0.00013698,2]
[404324594,1770060642615,-605.88,0.00013698,2]
[404324595,1770060642624,-605.88,0.00013698,2]
[404324596,1770060642634,-605.88,0.00013698,2]
[404324597,1770060642643,-605.88,0.00013698,2]
[404324598,1770060642652,-605.88,0.00013698,2]
[404324599,1770060642662,-605.88,0.00013698,2]
[404324600,1770060642671,-605.88,0.00013698,2]
[404324601,1770060642681,-605.88,0.00013698,2]
[404324602,1770060642692,-605.88,0.00013698,2]
[404324603,1770060642702,-605.88,0.00013698,2]
[404324604,1770060642712,-605.88,0.00013698,2]
[404324605,1770060642721,-605.88,0.00013698,2]
[404324606,1770060642731,-500.0,0.00013753,2]
[404324607,1770060642742,-200.0,0.00013799,2]
[404324608,1770060642751,-500.0,0.00013799,2]
[404324609,1770060642760,-458.51,0.00013804,2]
[404324610,1770060642770,-500.0,0.00013815,2]
[404324611,1770060642780,-748.74,0.00013886,2]
[404324612,1770060642789,-1269.29,0.00013886,2]
[404324613,1770060642798,-849.11,0.00013886,2]
[404324614,1770060642808,-322.6107,0.00013887,2]
[404324615,1770060642818,-250.0,0.00013887,2]
[404324616,1770060642827,-721.12765535,0.00013887,2]
[404324617,1770060642837,-209.40437684,0.00013887,2]
[404324618,1770060642846,-500.0,0.00013887,2]
[404324619,1770060642856,-250.0,0.00013887,2]
[404324620,1770060642866,-500.0,0.00013887,2]
[404324621,1770060642875,-250.0,0.00013887,2]
[404324622,1770060642884,-500.0,0.00013887,2]
[404324623,1770060642894,-250.0,0.00013887,2]
[404324624,1770060642904,-500.0,0.00013887,2]
[404324625,1770060642914,-250.0,0.00013887,2]
[404324626,1770060642924,-500.0,0.00013887,2]
[404324627,1770060642934,-250.0,0.00013887,2]
[404324628,1770060642943,-1428.38747117,0.00013887,2]
[404324629,1770060642953,-500.0,0.00013887,2]
[404324630,1770060642962,-151.0,0.00013887,2]
[404324631,1770060642971,-500.0,0.00013887,2]
[404324632,1770060642980,-500.0,0.00013887,2]
[404324633,1770060642991,-174.61919141,0.00013887,2]
[404324634,1770060643001,-500.0,0.00013887,2]
[404324635,1770060643010,-500.0,0.00013887,2]
[404324636,1770060643021,-500.0,0.00013887,2]
[404324637,1770060643031,-859.80605061,0.00013887,2]
[404324639,1770060643041,-578.20924308,0.00013887,2]
[404324640,1770060643051,-209.40437684,0.00013887,2]
[404324641,1770060643060,-250.0,0.00013887,2]
[404324642,1770060643070,-250.0,0.00013887,2]
[404324644,1770060643079,-250.0,0.00013887,2]
[404324645,1770060643089,-250.0,0.00013887,2]
[404324646,1770060643099,-250.0,0.00013887,2]
[404324647,1770060643108,-250.0,0.00013887,2]
[404324648,1770060643117,-250.0,0.00013887,2]
[404324649,1770060643127,-250.0,0.00013887,2]
[404324650,1770060643138,-250.0,0.00013887,2]
[404324651,1770060643148,-250.0,0.00013887,2]
[404324652,1770060643157,-250.0,0.00013887,2]
[404324653,1770060643167,-209.40437684,0.00013887,2]
[404324654,1770060643176,-1208.08524459,0.00013933,2]
[404324655,1770060643191,-217.15233878,0.00013942,2]
[404324656,1770060643201,-57709.19420285,0.00013954,2]
[404324657,1770060643210,-500.0,0.00013972,2]
[404324658,1770060643220,-500.0,0.00013972,2]
[404324659,1770060643231,-520.98046437,0.00013972,2]
[404324660,1770060643243,-1214.96,0.00013972,2]
[404324661,1770060643253,-619.1,0.00013972,2]
[404324662,1770060643263,-500.0,0.00013972,2]
[404324663,1770060643273,-596.97,0.00013972,2]
[404324664,1770060643282,-500.0,0.00013972,2]
[404324665,1770060643291,-605.88,0.00013972,2]
[404324666,1770060643301,-500.0,0.00013973,2]
[404324667,1770060643310,-541.62569807,0.00013973,2]
[404324668,1770060643320,-500.0,0.00013973,2]
[404324669,1770060643329,-569.16951839,0.00013973,2]
[404324670,1770060643339,-500.0,0.00013973,2]
[404324671,1770060643348,-500.0,0.00013973,2]
[404324672,1770060643358,-500.0,0.00013973,2]
[404324673,1770060643368,-500.0,0.00013973,2]
[404324674,1770060643377,-500.0,0.00013973,2]
[404324675,1770060643387,-500.0,0.00013973,2]
[404324676,1770060643397,-500.0,0.00013973,2]
[404324677,1770060643406,-500.0,0.00013973,2]
[404324678,1770060643416,-500.0,0.00013973,2]
[404324679,1770060643426,-500.0,0.00013973,2]
[404324680,1770060643436,-259.40505883,0.00013973,2]
[404324681,1770060643445,-500.0,0.00013973,2]
[404324682,1770060643455,-163.07853281,0.00013973,2]
[404324683,1770060643464,-500.0,0.00013973,2]
[404324684,1770060643474,-500.0,0.00013973,2]
[404324685,1770060643483,-181.57502123,0.00013973,2]
[404324686,1770060643495,-500.0,0.00013973,2]
[404324687,1770060643504,-500.0,0.00013973,2]
[404324688,1770060643513,-500.0,0.00013973,2]
[404324689,1770060643523,-164.70227396,0.00013973,2]
[404324690,1770060643532,-500.0,0.00013973,2]
[404324691,1770060643541,-163.90719075,0.00013973,2]
[404324692,1770060643550,-500.0,0.00013973,2]
[404324693,1770060643559,-500.0,0.00013973,2]
[404324694,1770060643569,-500.0,0.00013973,2]
[404324695,1770060643580,-500.0,0.00013973,2]
[404324696,1770060643590,-500.0,0.00013973,2]
[404324697,1770060643600,-500.0,0.00013973,2]
[404324698,1770060643610,-500.12230816,0.00013973,2]
[404324699,1770060643619,-1000.0,0.00013981,2]
[404324700,1770060643630,-1600.0,0.00013982,2]
[404324701,1770060643639,-225.18697532,0.00013997,2]
[404324702,1770060643650,-233.51889341,0.00014052,2]
[404324703,1770060643659,-458.51,0.00014078,2]
[404324704,1770060643669,-500.0,0.00014088,2]
[404324705,1770060643679,-242.15909246,0.00014107,2]
[404324706,1770060643690,-251.11897888,0.00014162,2]
[404324707,1770060643702,-868.9,0.00014184,2]
[404324708,1770060643712,-260.4103811,0.00014217,2]
[404324709,1770060643721,-773.23,0.00014239,2]
[404324710,1770060643731,-270.0455652,0.00014272,2]
[404324711,1770060643741,-280.03725112,0.00014327,2]
[404324712,1770060643750,-222.88299738,0.00014347,2]
[404324713,1770060643761,-500.0,0.00014347,2]
[404324714,1770060643771,-458.51,0.00014352,2]
[404324715,1770060643781,-500.0,0.00014362,2]
[404324716,1770060643791,-290.39862941,0.00014382,2]
[404324717,1770060643801,-10331.11610173,0.0001439,2]
[404324718,1770060643810,-500.0,0.00014434,2]
[404324719,1770060643819,-276.99112212,0.00014435,2]
[404324720,1770060643829,-1481.23780761,0.00014435,2]